bitfinex/quotes_SOLUSD_20240702
["timestamp","ask_amount","ask_price","bid_price","bid_amount"]
[1719932236820,21.1514,148.47,148.43,18.1895335]
[1719932237000,21.1514,148.47,148.44,8.08370094]
[1719932237299,21.1514,148.47,148.38,85.26]
[1719932237300,21.1514,148.47,148.4,16.8454]
[1719932237815,21.1514,148.47,148.41,6.738]
[1719932238022,21.1514,148.47,148.4,16.8454]
[1719932238023,21.1514,148.47,148.42,8.0847417]
[1719932238323,21.1514,148.47,148.43,1.34710535]
[1719932238738,21.1514,148.47,148.42,6.7375]
[1719932239826,21.1514,148.47,148.43,6.7371]
[1719932240025,21.1514,148.47,148.4,16.8454]
[1719932241710,21.1514,148.47,148.42,6.7375]
[1719932242425,21.1514,148.47,148.41,6.7379]
[1719932242628,21.1514,148.47,148.4,16.8454]
[1719932242806,21.1514,148.47,148.4,23.5839]
[1719932243008,21.1514,148.47,148.41,6.738]
[1719932243423,21.1514,148.47,148.4,23.5837]
[1719932244106,21.1514,148.47,148.41,30.56]
[1719932244926,21.1514,148.47,148.41,37.2979]
[1719932245328,21.1514,148.47,148.41,30.56]
[1719932245524,21.1514,148.47,148.41,37.2977]
[1719932246517,21.1514,148.47,148.42,8.08479897]
[1719932246720,21.1514,148.47,148.43,6.7371]
[1719932247522,21.1514,148.47,148.42,23.5812]
[1719932247906,21.1514,148.47,148.43,6.7369]
[1719932248107,21.1514,148.47,148.41,37.298]
[1719932248634,21.1514,148.47,148.41,30.56]
[1719932248828,21.1514,148.47,148.41,37.298]
[1719932249017,21.1514,148.47,148.42,6.7375]
[1719932249217,21.1514,148.47,148.43,6.7371]
[1719932249417,21.1514,148.47,148.44,1.34709814]
[1719932249634,21.1514,148.47,148.41,47.405]
[1719932249635,21.1514,148.47,148.42,6.7374]
[1719932249941,21.1514,148.47,148.43,6.7369]
[1719932250330,21.1514,148.47,148.41,47.405]
[1719932250520,21.1514,148.47,148.41,54.1429]
[1719932251250,21.1514,148.47,148.42,1.34722125]
[1719932251442,21.1514,148.47,148.45,30.56]
[1719932252435,22.2131,148.51,148.46,1.34705533]
[1719932252741,22.2131,148.51,148.45,30.56]
[1719932253213,22.2131,148.51,148.46,1.34692566]
[1719932254051,22.2131,148.51,148.45,37.2961]
[1719932254644,22.2131,148.51,148.46,1.34681378]
[1719932255646,22.2131,148.51,148.45,37.2961]
[1719932255818,22.2131,148.51,148.46,8.08251273]
[1719932256425,22.2131,148.51,148.46,1.34681273]
[1719932256737,22.2131,148.51,148.45,37.2961]
[1719932256921,22.2131,148.51,148.45,30.56]
[1719932257121,22.2131,148.51,148.46,1.34691778]
[1719932257349,22.2131,148.51,148.45,30.56]
[1719932257522,45.0,148.5,148.45,30.56]
[1719932259254,45.0,148.5,148.45,31.90709854]
[1719932259850,45.0,148.5,148.46,6.7357]
[1719932260043,22.2131,148.51,148.45,48.74739854]
[1719932261150,22.2131,148.51,148.45,31.90709854]
[1719932261856,22.2131,148.51,148.45,30.56]
[1719932264434,19.4455796,148.5,148.45,30.56]
[1719932265248,19.44543831,148.49,148.45,30.56]
[1719932265427,19.44542283,148.49,148.45,31.90705475]
[1719932265628,22.2131,148.51,148.45,31.90705475]
[1719932265829,19.44542478,148.5,148.49,15.28]
[1719932266644,19.44564744,148.5,148.49,15.28]
[1719932267447,19.44564744,148.5,148.48,15.28]
[1719932267633,19.44564744,148.5,148.41,22.21257698]
[1719932267843,19.44564744,148.5,148.48,15.28]
[1719932268340,19.44564744,148.5,148.49,15.28]
[1719932269347,19.44349956,148.5,148.49,15.28]
[1719932269650,22.2131,148.51,148.49,15.28]
[1719932269851,22.2131,148.51,148.5,15.28]
[1719932270226,41.65635025,148.51,148.5,15.28]
[1719932270832,19.44325025,148.51,148.5,15.28]
[1719932273133,19.44324911,148.51,148.5,15.28]
[1719932273541,19.44324911,148.54,148.5,15.28]
[1719932273761,19.44324911,148.54,148.52,15.28]
[1719932275958,21.6682,148.55,148.52,15.28]
[1719932276255,19.4422783,148.54,148.52,15.28]
[1719932276555,64.4422783,148.54,148.52,15.28]
[1719932276851,19.4422783,148.53,148.52,15.28]
[1719932277438,19.4422783,148.54,148.52,15.28]
[1719932277639,19.4422783,148.54,148.53,15.28]
[1719932279164,21.6682,148.55,148.53,15.28]
[1719932279463,19.439134,148.54,148.49,8.08072934]
[1719932279665,19.439134,148.54,148.53,15.28]
[1719932280748,21.4571,148.59,148.53,15.28]
[1719932280749,19.439134,148.58,148.53,15.28]
[1719932280953,19.439134,148.58,148.56,15.28]
[1719932281561,19.43666737,148.57,148.56,15.28]
[1719932281763,19.43666737,148.58,148.56,15.28]
[1719932281943,19.43740573,148.57,148.56,15.28]
[1719932282265,21.4571,148.59,148.52,1.34624325]
[1719932282266,19.43740573,148.58,148.52,1.34624325]
[1719932282575,19.43740573,148.57,148.56,15.28]
[1719932282747,19.43740573,148.58,148.56,15.28]
[1719932283071,19.43740573,148.58,148.57,15.28]
[1719932283363,19.43740573,148.58,148.56,15.28]
[1719932283544,19.43740573,148.58,148.49,6.7344]
[1719932283741,19.43740573,148.58,148.55,15.28]
[1719932284368,19.43740573,148.58,148.49,23.5704]
[1719932284667,19.43805187,148.57,148.56,15.28]
[1719932285167,19.43805187,148.58,148.55,15.28]
[1719932285573,19.43805187,148.58,148.56,15.28]
[1719932286064,19.43805187,148.58,148.49,16.836]
[1719932286247,19.43805187,148.58,148.53,15.28]
[1719932286651,45.0,148.57,148.54,15.28]
[1719932286958,19.43805187,148.56,148.54,15.28]
[1719932287846,19.43805187,148.56,148.46,23.5744]
[1719932288044,60.28,148.55,148.46,23.5744]
[1719932288248,19.43805187,148.54,148.51,15.28]
[1719932288462,45.0,148.53,148.51,15.28]
[1719932288665,21.4571,148.59,148.51,15.28]
[1719932288964,15.28,148.56,148.51,15.28]
[1719932289160,45.0,148.53,148.46,23.5743]
[1719932289364,19.44118514,148.52,148.51,15.28]
[1719932289670,15.28,148.56,148.51,15.28]
[1719932289868,19.44171998,148.55,148.51,15.28]
[1719932290074,64.44171998,148.55,148.48,16.837]
[1719932290242,19.44171998,148.54,148.51,15.28]
[1719932290439,19.44171998,148.54,148.48,23.5717]
[1719932290643,45.0,148.53,148.46,6.7356]
[1719932290839,45.0,148.53,148.5,15.28]
[1719932291087,45.0,148.53,148.47,67.8552]
[1719932291088,19.44239025,148.52,148.47,67.8552]
[1719932291245,19.44239025,148.52,148.47,61.12]
[1719932291445,19.44239025,148.54,148.47,61.12]
[1719932291744,19.44231475,148.53,148.51,15.28]
[1719932292053,19.44231475,148.52,148.47,6.7353]
[1719932292255,45.0,148.53,148.47,61.12]
[1719932292559,19.44274879,148.52,148.51,15.28]
[1719932293059,19.44274879,148.55,148.51,15.28]
[1719932293264,19.44274879,148.55,148.53,15.28]
[1719932293563,19.44274879,148.54,148.53,15.28]
[1719932293750,19.44274879,148.57,148.53,15.28]
[1719932293948,19.44274879,148.54,148.53,15.28]
[1719932294142,19.44021919,148.54,148.53,15.28]
[1719932294365,21.4571,148.59,148.53,15.28]
[1719932294566,19.43818555,148.58,148.55,15.28]
[1719932295857,19.43818555,148.58,148.52,1.34644183]
[1719932295858,19.43818555,148.58,148.56,15.28]
[1719932297060,21.4571,148.59,148.56,15.28]
[1719932297266,19.43598779,148.58,148.57,15.28]
[1719932300276,21.4571,148.59,148.57,15.28]
[1719932300444,19.43658046,148.58,148.57,15.28]
[1719932303474,19.4362204,148.58,148.57,15.28]
[1719932303673,21.4571,148.59,148.57,15.28]
[1719932304172,21.4571,148.59,148.54,61.12]
[1719932304345,21.4571,148.59,148.57,15.28]
[1719932305670,22.3777,148.64,148.54,16.62616783]
[1719932305969,19.43317428,148.63,148.58,15.28]
[1719932306170,19.43317428,148.63,148.6,15.28]
[1719932306555,22.3777,148.64,148.6,15.28]
[1719932306781,19.43073754,148.62,148.6,15.28]
[1719932306971,22.3777,148.64,148.6,15.28]
[1719932307150,19.43017559,148.63,148.61,15.28]
[1719932307767,19.43017559,148.63,148.6,15.28]
[1719932309466,19.43017559,148.63,148.57,1.34592858]
[1719932309666,19.43017559,148.63,148.6,15.28]
[1719932309881,67.3777,148.64,148.6,15.28]
[1719932310056,19.43017644,148.63,148.6,15.28]
[1719932311869,19.43017644,148.63,148.56,1.34592871]
[1719932311870,19.43017644,148.63,148.61,15.28]
[1719932312076,19.43017644,148.63,148.62,15.28]
[1719932312584,67.3777,148.64,148.62,15.28]
[1719932312767,67.3777,148.64,148.61,15.28]
[1719932313163,15.28,148.67,148.61,15.28]
[1719932313359,19.42809244,148.66,148.61,15.28]
[1719932313557,19.42809244,148.67,148.63,15.28]
[1719932313758,34.70809244,148.67,148.62,15.28]
[1719932313958,19.42809244,148.66,148.62,15.28]
[1719932314666,15.28,148.66,148.57,23.5578]
[1719932314866,19.42809244,148.65,148.62,15.28]
[1719932315169,60.28,148.67,148.61,15.28]
[1719932315469,60.28,148.67,148.57,23.5578]
[1719932315470,19.42811134,148.66,148.62,15.28]
[1719932316976,34.70811134,148.66,148.57,16.827]
[1719932317165,34.70811134,148.66,148.61,15.28]
[1719932317166,19.42811134,148.65,148.61,15.28]
[1719932317481,45.0,148.64,148.61,15.28]
[1719932317977,45.0,148.65,148.61,15.28]
[1719932318671,15.28,148.67,148.62,15.28]
[1719932318985,64.42687317,148.66,148.62,15.28]
[1719932319172,45.0,148.66,148.62,15.28]
[1719932321164,60.28,148.66,148.58,1.34568318]
[1719932321365,60.28,148.66,148.61,15.28]
[1719932321671,19.42852952,148.65,148.59,15.28]
[1719932321990,15.28,148.64,148.59,15.28]
[1719932322176,15.28,148.64,148.58,1.34581997]
[1719932322384,15.28,148.64,148.59,15.28]
[1719932322760,15.28,148.64,148.56,1.34588065]
[1719932322966,15.28,148.65,148.6,15.28]
[1719932323161,45.0,148.66,148.55,23.5606]
[1719932323162,45.0,148.63,148.55,23.5606]
[1719932323466,45.0,148.63,148.54,6.732]
[1719932323670,45.0,148.63,148.56,15.28]
[1719932323671,15.28,148.61,148.56,15.28]
[1719932323869,45.0,148.6,148.56,15.28]
[1719932324077,45.0,148.6,148.53,15.263]
[1719932324269,60.28,148.6,148.55,15.28]
[1719932326161,60.28,148.6,148.49,32.2279]
[1719932326162,45.0,148.6,148.49,32.2279]
[1719932326367,15.28,148.57,148.49,32.2279]
[1719932326564,15.28,148.57,148.44,8.67731971]
[1719932326565,15.28,148.53,148.46,16.839]
[1719932326768,15.0462,148.55,148.45,15.3927]
[1719932327011,15.5515,148.59,148.54,15.28]
[1719932327184,34.71641851,148.58,148.53,15.28]
[1719932327406,15.28,148.58,148.52,15.28]
[1719932327570,15.28,148.56,148.48,6.7347]
[1719932327770,15.28,148.56,148.51,15.28]
[1719932328881,15.28,148.55,148.49,6.7344]
[1719932329081,15.28,148.56,148.51,15.28]
[1719932329293,45.0,148.55,148.51,15.28]
[1719932332573,45.0,148.55,148.52,15.28]
[1719932333211,45.0,148.55,148.46,6.7357]
[1719932333421,34.72220502,148.54,148.48,15.28]
[1719932333598,15.28,148.54,148.48,15.28]
[1719932333789,15.28,148.54,148.49,15.28]
[1719932334591,15.28,148.54,148.48,15.28]
[1719932334809,45.0,148.53,148.48,15.28]
[1719932337023,15.28,148.55,148.5,15.28]
[1719932337187,45.0,148.53,148.5,15.28]
[1719932337818,45.0,148.54,148.49,15.28]
[1719932338331,15.28,148.53,148.45,15.3927]
[1719932338532,60.28,148.52,148.45,15.3927]
[1719932338733,75.8821,148.52,148.43,23.5794]
[1719932338907,15.28,148.51,148.43,23.5794]
[1719932339102,15.28,148.51,148.43,16.8424]
[1719932339526,15.28,148.51,148.43,23.5795]
[1719932339731,15.28,148.5,148.45,15.28]
[1719932340332,15.28,148.49,148.41,21.9866]
[1719932340505,15.28,148.48,148.41,15.2487]
[1719932340715,15.28,148.47,148.42,15.28]
[1719932341011,15.28,148.48,148.43,15.28]
[1719932341207,45.0,148.47,148.41,21.9866]
[1719932341659,45.0,148.47,148.43,15.28]
[1719932342498,51.4746,148.47,148.36,23.1233]
[1719932342702,15.28,148.44,148.39,15.28]
[1719932343205,51.4746,148.47,148.39,15.28]
[1719932343206,15.28,148.45,148.39,15.28]
[1719932343541,15.28,148.44,148.39,15.28]
[1719932343708,45.0,148.43,148.39,15.28]
[1719932344598,45.0,148.43,148.36,29.8635]
[1719932344804,45.0,148.43,148.39,15.28]
[1719932345214,6.4746,148.47,148.4,15.28]
[1719932345425,15.28,148.45,148.4,15.28]
[1719932345605,6.4746,148.47,148.42,15.28]
[1719932345806,21.7546,148.47,148.42,15.28]
[1719932346636,21.7546,148.47,148.41,15.28]
[1719932346944,6.4746,148.47,148.41,15.28]
[1719932347112,45.0,148.46,148.41,15.28]
[1719932347312,45.0,148.46,148.39,6.7389]
[1719932347834,45.0,148.46,148.41,15.28]
[1719932348012,6.4746,148.47,148.43,15.28]
[1719932349222,45.0,148.46,148.43,15.28]
[1719932349624,6.0705,148.51,148.45,15.28]
[1719932349813,6.0705,148.51,148.47,15.28]
[1719932350127,6.0705,148.51,148.44,6.7367]
[1719932350322,6.0705,148.51,148.47,15.28]
[1719932351121,15.6021,148.52,148.48,15.28]
[1719932351704,15.28,148.51,148.42,15.7508]
[1719932351906,15.28,148.51,148.46,15.28]
[1719932352521,60.28,148.51,148.46,15.28]
[1719932352933,45.0,148.51,148.46,15.28]
[1719932353628,60.28,148.51,148.46,15.28]
[1719932354232,45.0,148.51,148.39,15.3609]
[1719932354431,15.28,148.49,148.44,15.28]
[1719932354643,45.0,148.48,148.44,15.28]
[1719932355711,45.0,148.48,148.39,32.2079]
[1719932355914,45.0,148.48,148.42,15.28]
[1719932355915,15.28,148.47,148.42,15.28]
[1719932356114,51.5764,148.48,148.4,15.28]
[1719932356342,60.28,148.46,148.4,15.28]
[1719932356629,15.28,148.46,148.41,15.28]
[1719932356836,15.28,148.44,148.39,15.28]
[1719932358714,45.0,148.43,148.39,15.28]
[1719932360333,45.0,148.43,148.37,6.7397]
[1719932360633,45.0,148.43,148.39,15.28]
[1719932362228,45.0,148.43,148.37,6.7397]
[1719932362425,45.0,148.43,148.38,15.28]
[1719932363342,15.28,148.42,148.36,16.8502]
[1719932363539,15.28,148.41,148.36,15.28]
[1719932363731,15.28,148.42,148.37,15.28]
[1719932364564,15.28,148.41,148.34,6.7412]
[1719932364741,15.28,148.41,148.35,15.28]
[1719932364936,15.28,148.41,148.36,15.28]
[1719932365140,45.0,148.4,148.36,15.28]
[1719932366041,45.0,148.4,148.35,15.28]
[1719932366523,45.0,148.4,148.36,15.28]
[1719932367228,15.28,148.42,148.37,15.28]
[1719932367730,15.28,148.42,148.35,6.7406]
[1719932367731,16.6245,148.45,148.39,15.28]
[1719932368140,31.9045,148.45,148.4,15.28]
[1719932368440,45.0,148.44,148.4,15.28]
[1719932370949,60.28,148.44,148.39,15.28]
[1719932371145,15.5791,148.5,148.43,15.28]
[1719932371340,30.8591,148.5,148.45,15.28]
[1719932371732,15.5791,148.5,148.46,15.28]
[1719932372134,30.8591,148.5,148.45,15.28]
[1719932372653,15.5791,148.5,148.45,15.28]
[1719932372849,15.5791,148.5,148.4,77.9656]
[1719932372850,22.5826,148.55,148.47,15.28]
[1719932373060,15.28,148.53,148.48,15.28]
[1719932373349,22.5826,148.55,148.51,15.28]
[1719932373555,19.44284492,148.54,148.51,15.28]
[1719932373740,19.44284492,148.54,148.52,16.62663674]
[1719932374055,19.44284492,148.54,148.48,16.8366]
[1719932374056,15.28,148.58,148.53,15.28]
[1719932374257,19.43862181,148.57,148.53,15.28]
[1719932374549,34.71862181,148.57,148.52,15.28]
[1719932374748,21.6341,148.59,148.53,15.28]
[1719932374935,19.43835703,148.58,148.53,15.28]
[1719932375135,34.71835703,148.58,148.53,15.28]
[1719932375436,15.28,148.58,148.53,15.28]
[1719932375736,19.43811858,148.57,148.49,6.7344]
[1719932376046,21.6341,148.59,148.49,6.7344]
[1719932376249,19.43920633,148.58,148.48,47.3666]
[1719932376957,19.43920633,148.58,148.45,70.3264]
[1719932377248,45.0,148.57,148.45,70.3264]
[1719932377447,45.0,148.57,148.45,16.2203]
[1719932377650,19.44215118,148.56,148.45,16.2203]
[1719932377835,45.0,148.55,148.45,16.2203]
[1719932378037,19.44215118,148.54,148.45,16.2203]
[1719932378248,45.0,148.53,148.43,6.7371]
[1719932378446,45.0,148.53,148.44,6.7366]
[1719932378752,45.0,148.53,148.45,1.34703277]
[1719932379252,19.4446493,148.52,148.45,1.34703277]
[1719932379449,45.0,148.51,148.46,1.34704412]
[1719932379656,45.0,148.51,148.45,8.08288505]
[1719932379842,45.0,148.51,148.45,1.34698505]
[1719932380833,45.0,148.51,148.45,8.08318505]
[1719932381539,45.0,148.51,148.45,1.34698505]
[1719932382063,45.0,148.51,148.42,30.53]
[1719932382348,45.0,148.51,148.42,37.2674]
[1719932382560,45.0,148.51,148.39,13.0983]
[1719932382750,19.44721439,148.5,148.39,13.0983]
[1719932382932,19.44721439,148.5,148.4,8.0857828]
[1719932383132,45.0,148.49,148.4,8.0857828]
[1719932383554,45.0,148.49,148.4,6.7384]
[1719932383753,45.0,148.49,148.4,16.8457]
[1719932384054,45.0,148.49,148.4,30.53]
[1719932384252,45.0,148.49,148.4,37.2682]
[1719932384445,45.0,148.49,148.4,47.376]
[1719932385668,45.0,148.49,148.41,6.7379]
[1719932386138,45.0,148.49,148.4,54.1144]
[1719932386344,41.579479,148.49,148.4,54.1144]
[1719932386661,41.579479,148.49,148.4,47.376]
[1719932386947,41.579479,148.49,148.4,54.1145]
[1719932388048,41.579479,148.49,148.4,30.53]
[1719932388837,41.579479,148.49,148.37,46.1595]
[1719932389040,19.44941345,148.48,148.37,46.1595]
[1719932389248,45.0,148.47,148.37,52.899]
[1719932389954,6.6607,148.45,148.37,46.1595]
[1719932390646,6.6607,148.45,148.37,15.6295]
[1719932391458,6.6607,148.45,148.37,22.3692]
[1719932392551,6.6607,148.45,148.38,6.7394]
[1719932392745,6.6607,148.45,148.37,15.6295]
[1719932393162,6.6607,148.45,148.37,22.3692]
[1719932393657,15.819,148.46,148.38,16.8483]
[1719932393863,6.0194,148.49,148.41,6.738]
[1719932394062,6.0194,148.49,148.42,16.8436]
[1719932394366,6.0194,148.49,148.44,6.7365]
[1719932394661,6.0194,148.49,148.42,23.5809]
[1719932394861,6.0194,148.49,148.42,47.3736]
[1719932395180,15.8322,148.5,148.44,23.5781]
[1719932395544,15.8322,148.5,148.44,16.8416]
[1719932395759,15.8322,148.5,148.42,37.2675]
[1719932398166,45.0,148.49,148.39,43.6]
[1719932398372,45.0,148.49,148.4,20.0]
[1719932398668,45.0,148.49,148.39,30.53]
[1719932399050,19.44920894,148.48,148.39,37.2688]
[1719932399250,19.44920894,148.48,148.4,6.7385]
[1719932399450,45.0,148.49,148.4,6.7385]
[1719932399654,19.44925456,148.48,148.41,6.7376]
[1719932399846,15.8322,148.5,148.41,6.7379]
[1719932400187,19.44816053,148.49,148.41,6.738]
[1719932400361,19.44816053,148.49,148.44,6.7366]
[1719932400670,15.8322,148.5,148.42,16.8431]
[1719932400671,15.8322,148.5,148.42,30.53]
[1719932400888,15.8322,148.5,148.39,47.3765]
[1719932401193,19.44831259,148.49,148.39,54.1153]
[1719932401693,45.0,148.48,148.39,54.1154]
[1719932401868,45.0,148.49,148.39,54.1154]
[1719932402362,19.44933397,148.48,148.39,54.1154]
[1719932402671,45.0,148.47,148.39,54.1154]
[1719932402878,51.5711,148.47,148.36,16.8501]
[1719932403374,19.45140051,148.46,148.38,6.7394]
[1719932403574,51.5711,148.47,148.35,57.2015]
[1719932403878,51.5711,148.47,148.4,16.8459]
[1719932404177,6.5711,148.47,148.4,23.5842]
[1719932404975,6.5711,148.47,148.41,6.7379]
[1719932405271,15.8322,148.5,148.42,16.8437]
[1719932405672,15.8322,148.5,148.44,6.7363]
[1719932405849,15.8322,148.5,148.43,6.7371]
[1719932407757,15.8322,148.5,148.42,6.7374]
[1719932408278,15.8322,148.5,148.41,37.2679]
[1719932408482,45.0,148.49,148.41,6.738]
[1719932409068,45.0,148.49,148.4,23.5835]
[1719932409272,45.0,148.49,148.4,16.8452]
[1719932409474,19.44893046,148.48,148.4,6.7384]
[1719932409666,19.44893046,148.48,148.39,30.53]
[1719932409879,19.44893046,148.48,148.39,37.2689]
[1719932410590,45.0,148.47,148.39,37.2689]
[1719932411792,45.0,148.47,148.39,30.53]
[1719932411992,45.0,148.47,148.37,16.8489]
[1719932412172,45.0,148.47,148.37,23.5887]
[1719932412173,15.4533,148.44,148.37,23.5887]
[1719932413592,15.4533,148.44,148.38,6.739]
[1719932414102,15.4533,148.44,148.39,6.7389]
[1719932414588,15.4533,148.44,148.38,6.7392]
[1719932414992,45.0,148.43,148.33,23.5951]
[1719932415365,45.0,148.43,148.34,1.34790025]
[1719932416590,45.0,148.43,148.33,1.34794124]
[1719932417170,22.7901,148.42,148.33,1.34794124]
[1719932417500,21.7292,148.4,148.23,22.3857]
[1719932417661,21.7292,148.4,148.26,16.862]
[1719932417866,20.0,148.39,148.26,23.6067]
[1719932418081,20.0,148.39,148.27,6.7444]
[1719932418292,20.0,148.39,148.26,16.862]
[1719932418293,20.0,148.39,148.28,6.7438]
[1719932418462,20.0,148.39,148.29,1.34840522]
[1719932418794,20.0,148.39,148.3,1.34840522]
[1719932419006,45.0,148.38,148.3,1.34840522]
[1719932419496,45.0,148.38,148.28,6.7438]
[1719932419794,45.0,148.38,148.23,5.25603127]
[1719932419795,22.2231,148.37,148.23,5.25603127]
[1719932419970,49.99135331,148.36,148.24,6.7455]
[1719932420169,65.0,148.35,148.24,6.7455]
[1719932420387,65.0,148.35,148.25,6.7453]
[1719932420778,65.0,148.35,148.26,1.34851225]
[1719932420982,65.0,148.35,148.25,6.7453]
[1719932421182,65.0,148.35,148.25,6.745]
[1719932421380,65.0,148.35,148.26,8.09337581]
[1719932421582,65.0,148.35,148.27,1.34856966]
[1719932421984,65.0,148.35,148.26,16.8619]
[1719932422178,23.0402,148.34,148.22,36.00171355]
[1719932422383,45.0,148.33,148.23,8.09458775]
[1719932422795,45.0,148.33,148.24,1.34872931]
[1719932423006,23.0402,148.32,148.24,1.34872931]
[1719932423374,23.0402,148.32,148.24,6.7458]
[1719932423978,23.0402,148.32,148.23,16.8652]
[1719932424290,23.0402,148.32,148.25,1.3486567]
[1719932425075,45.0,148.31,148.24,1.34885291]
[1719932426492,45.0,148.31,148.2,47.3982]
[1719932426993,45.0,148.31,148.21,6.7468]
[1719932427196,45.0,148.31,148.22,6.7467]
[1719932427391,45.0,148.31,148.23,1.34894003]
[1719932427592,45.0,148.31,148.24,1.34894003]
[1719932428302,23.0402,148.32,148.22,16.8665]
[1719932428476,23.0402,148.32,148.24,23.6093]
[1719932428796,23.0402,148.32,148.25,6.7453]
[1719932428993,23.0402,148.32,148.24,23.6096]
[1719932429300,23.0402,148.32,148.25,1.34872685]
[1719932429780,23.0402,148.32,148.23,6.7458]
[1719932429978,23.0402,148.32,148.23,16.8654]
[1719932430379,23.0402,148.32,148.24,6.7456]
[1719932430782,23.0402,148.32,148.25,1.34874193]
[1719932431884,45.0,148.31,148.24,1.34884414]
[1719932432778,45.0,148.31,148.23,1.34893258]
[1719932434182,45.0,148.31,148.22,8.09568277]
[1719932434396,45.0,148.31,148.23,1.34898193]
[1719932434600,45.0,148.31,148.24,1.34898193]
[1719932435504,45.0,148.31,148.21,6.747]
[1719932435803,45.0,148.31,148.22,1.34898404]
[1719932436007,45.0,148.31,148.22,8.09548404]
[1719932436401,45.0,148.31,148.22,1.34898404]
[1719932437389,45.0,148.31,148.22,8.09548404]
[1719932438104,23.0402,148.32,148.23,1.34898178]
[1719932438284,23.0402,148.32,148.24,1.34869082]
[1719932438483,23.0402,148.32,148.24,18.21309082]
[1719932438794,23.0402,148.32,148.24,16.8644]
[1719932438985,23.0402,148.32,148.28,6.7437]
[1719932439183,23.0402,148.32,148.29,1.34844386]
[1719932439394,22.3237,148.37,148.3,1.34844358]
[1719932439694,22.3237,148.37,148.3,16.8575]
[1719932442499,22.3237,148.37,148.29,6.7434]
[1719932442709,22.3237,148.37,148.25,61.863]
[1719932442909,22.3237,148.37,148.26,57.2745]
[1719932443088,22.3237,148.37,148.29,6.7435]
[1719932443513,22.3237,148.37,148.27,16.8608]
[1719932444014,22.3237,148.37,148.29,6.7434]
[1719932444703,22.3237,148.37,148.3,6.743]
[1719932444904,22.3237,148.37,148.29,6.7434]
[1719932445109,22.3237,148.37,148.27,23.6048]
[1719932445288,45.0,148.36,148.27,23.6048]
[1719932446011,45.0,148.36,148.28,6.7438]
[1719932446811,45.0,148.36,148.29,6.7435]
[1719932447292,22.3237,148.37,148.31,6.7425]
[1719932447787,22.3237,148.37,148.32,1.34821046]
[1719932447983,22.3237,148.37,148.3,8.09111155]
[1719932448209,22.3237,148.37,148.29,16.8581]
[1719932448407,22.3237,148.37,148.26,67.3914]
[1719932449010,22.3237,148.37,148.27,6.7443]
[1719932449305,22.3237,148.37,148.26,23.6059]
[1719932449306,45.0,148.36,148.26,23.6059]
[1719932449493,45.0,148.36,148.28,6.7439]
[1719932449698,45.0,148.36,148.29,1.34852412]
[1719932449909,45.0,148.36,148.28,16.8589]
[1719932450108,45.0,148.36,148.29,1.34835106]
[1719932450307,45.0,148.36,148.28,23.6027]
[1719932450589,45.0,148.36,148.28,16.8589]
[1719932451003,45.0,148.36,148.26,6.7448]